[Event "Titled Tuesday Blitz March 08 Early 2022"]
[White "Rottenwohrer Suarez, Juan"]
[Black "Nguyen, Thien Ngan"]
[WhiteFideId "32068182"]
[BlackFideId "12414816"]
[WhiteElo "2158"]
[BlackElo "1917"]
[Result "1/2-1/2"]
[Round "05"]
[TimeControl "180+1"]
[Date "2022.03.09"]
[WhiteClock "0:00:11"]
[BlackClock "0:00:10"]

1. d4 {[%clk 0:03:00]}  d5 {[%clk 0:02:59]} 2. c4 {[%clk 0:03:00]}  e6 {[%clk 0:02:59]} 3. Nc3 {[%clk 0:03:00]}  Nf6 {[%clk 0:03:00]} 4. cxd5 {[%clk 0:03:00]}  Nxd5 {[%clk 0:02:58]} 5. Bg5 {[%clk 0:03:01]}  Qxg5 {[%clk 0:02:57]} 6. Nf3 {[%clk 0:02:39]}  Qd8 {[%clk 0:02:55]} 7. e4 {[%clk 0:02:36]}  Nxc3 {[%clk 0:02:55]} 8. bxc3 {[%clk 0:02:37]}  c5 {[%clk 0:02:56]} 9. Bb5+ {[%clk 0:02:34]}  Bd7 {[%clk 0:02:55]} 10. Bxd7+ {[%clk 0:02:33]}  Nxd7 {[%clk 0:02:55]} 11. O-O {[%clk 0:02:32]}  Bd6 {[%clk 0:02:51]} 12. Rb1 {[%clk 0:02:29]}  b6 {[%clk 0:02:49]} 13. e5 {[%clk 0:02:28]}  Be7 {[%clk 0:02:49]} 14. Re1 {[%clk 0:02:28]}  O-O {[%clk 0:02:49]} 15. d5 {[%clk 0:02:24]}  exd5 {[%clk 0:02:49]} 16. Qxd5 {[%clk 0:02:25]}  Qc7 {[%clk 0:02:46]} 17. e6 {[%clk 0:02:23]}  Nf6 {[%clk 0:02:45]} 18. exf7+ {[%clk 0:02:22]}  Kh8 {[%clk 0:02:43]} 19. Qf5 {[%clk 0:02:22]}  Bd6 {[%clk 0:02:37]} 20. Ng5 {[%clk 0:02:20]}  Bxh2+ {[%clk 0:02:36]} 21. Kh1 {[%clk 0:02:18]}  Qf4 {[%clk 0:02:17]} 22. Qxf4 {[%clk 0:02:15]}  Bxf4 {[%clk 0:02:17]} 23. Ne6 {[%clk 0:02:16]}  Bd2 {[%clk 0:02:16]} 24. Nxf8 {[%clk 0:02:14]}  Rxf8 {[%clk 0:02:14]} 25. Re7 {[%clk 0:02:14]}  Bxc3 {[%clk 0:02:12]} 26. Rb3 {[%clk 0:02:14]}  Bd4 {[%clk 0:02:11]} 27. Rxa7 {[%clk 0:02:12]}  h6 {[%clk 0:02:05]} 28. f3 {[%clk 0:02:09]}  Nd5 {[%clk 0:02:02]} 29. Rd7 {[%clk 0:02:06]}  Nb4 {[%clk 0:01:58]} 30. Rxb4 {[%clk 0:02:04]}  cxb4 {[%clk 0:01:58]} 31. Rxd4 {[%clk 0:02:03]}  Rxf7 {[%clk 0:01:58]} 32. Rxb4 {[%clk 0:02:04]}  Ra7 {[%clk 0:01:58]} 33. Rxb6 {[%clk 0:01:58]}  Rxa2 {[%clk 0:01:58]} 34. Kh2 {[%clk 0:01:59]}  Kh7 {[%clk 0:01:58]} 35. Kg3 {[%clk 0:02:00]}  Ra4 {[%clk 0:01:58]} 36. Rc6 {[%clk 0:02:00]}  Rd4 {[%clk 0:01:58]} 37. Rb6 {[%clk 0:02:00]}  h5 {[%clk 0:01:56]} 38. Rc6 {[%clk 0:01:59]}  g6 {[%clk 0:01:56]} 39. Rb6 {[%clk 0:01:58]}  Kh6 {[%clk 0:01:56]} 40. Rc6 {[%clk 0:01:58]}  Rd5 {[%clk 0:01:56]} 41. Rb6 {[%clk 0:01:59]}  Kg5 {[%clk 0:01:55]} 42. Rc6 {[%clk 0:01:57]}  h4+ {[%clk 0:01:54]} 43. Kh3 {[%clk 0:01:54]}  Kh5 {[%clk 0:01:53]} 44. Rb6 {[%clk 0:01:18]}  Rd3 {[%clk 0:01:43]} 45. Rc6 {[%clk 0:01:03]}  g5 {[%clk 0:01:41]} 46. Rc5 {[%clk 0:01:00]}  Rd1 {[%clk 0:01:33]} 47. Kh2 {[%clk 0:00:58]}  Rf1 {[%clk 0:01:24]} 48. Rb5 {[%clk 0:00:57]}  Kg6 {[%clk 0:00:48]} 49. Rc5 {[%clk 0:00:55]}  Rd1 {[%clk 0:00:46]} 50. Rb5 {[%clk 0:00:53]}  Rd4 {[%clk 0:00:43]} 51. Rc5 {[%clk 0:00:53]}  Rf4 {[%clk 0:00:42]} 52. Rb5 {[%clk 0:00:52]}  Rf6 {[%clk 0:00:36]} 53. Rc5 {[%clk 0:00:51]}  Kh5 {[%clk 0:00:32]} 54. Rb5 {[%clk 0:00:49]}  Rf4 {[%clk 0:00:32]} 55. Rc5 {[%clk 0:00:48]}  Rd4 {[%clk 0:00:32]} 56. Rb5 {[%clk 0:00:47]}  Rf4 {[%clk 0:00:31]} 57. Rc5 {[%clk 0:00:46]}  Rd4 {[%clk 0:00:25]} 58. Rc8 {[%clk 0:00:44]}  Rb4 {[%clk 0:00:23]} 59. Rh8+ {[%clk 0:00:41]}  Kg6 {[%clk 0:00:24]} 60. Rg8+ {[%clk 0:00:40]}  Kh6 {[%clk 0:00:24]} 61. Rf8 {[%clk 0:00:39]}  Ra4 {[%clk 0:00:21]} 62. Rb8 {[%clk 0:00:36]}  Kh5 {[%clk 0:00:21]} 63. Kh3 {[%clk 0:00:32]}  Rc4 {[%clk 0:00:19]} 64. Rh8+ {[%clk 0:00:29]}  Kg6 {[%clk 0:00:18]} 65. Rd8 {[%clk 0:00:28]}  Kh5 {[%clk 0:00:17]} 66. Rd7 {[%clk 0:00:26]}  Kg6 {[%clk 0:00:16]} 67. Rd6+ {[%clk 0:00:24]}  Kh5 {[%clk 0:00:17]} 68. Rb6 {[%clk 0:00:23]}  Rc1 {[%clk 0:00:14]} 69. Kh2 {[%clk 0:00:21]}  Rc4 {[%clk 0:00:14]} 70. Rb8 {[%clk 0:00:19]}  Rc1 {[%clk 0:00:13]} 71. Rb2 {[%clk 0:00:16]}  Rc5 {[%clk 0:00:12]} 72. Rb3 {[%clk 0:00:16]}  Rc4 {[%clk 0:00:12]} 73. Rd3 {[%clk 0:00:17]}  Rf4 {[%clk 0:00:12]} 74. Re3 {[%clk 0:00:17]}  Rf5 {[%clk 0:00:12]} 75. Re8 {[%clk 0:00:17]}  Ra5 {[%clk 0:00:12]} 76. Kh3 {[%clk 0:00:18]}  Ra4 {[%clk 0:00:12]} 77. Rh8+ {[%clk 0:00:18]}  Kg6 {[%clk 0:00:12]} 78. Rg8+ {[%clk 0:00:19]}  Kh6 {[%clk 0:00:13]} 79. Kh2 {[%clk 0:00:17]}  Kh5 {[%clk 0:00:12]} 80. Rg7 {[%clk 0:00:16]}  Kh6 {[%clk 0:00:13]} 81. Rc7 {[%clk 0:00:16]}  Rb4 {[%clk 0:00:13]} 82. Rc6+ {[%clk 0:00:16]}  Kh5 {[%clk 0:00:13]} 83. Rc5 {[%clk 0:00:16]}  Ra4 {[%clk 0:00:13]} 84. Rc8 {[%clk 0:00:16]}  Rb4 {[%clk 0:00:12]} 85. Rh8+ {[%clk 0:00:15]}  Kg6 {[%clk 0:00:13]} 86. Kh3 {[%clk 0:00:16]}  Ra4 {[%clk 0:00:12]} 87. Rb8 {[%clk 0:00:13]}  Kh5 {[%clk 0:00:12]} 88. Rb5 {[%clk 0:00:13]}  Rc4 {[%clk 0:00:11]} 89. Rb8 {[%clk 0:00:12]}  Ra4 {[%clk 0:00:11]} 90. Rb7 {[%clk 0:00:12]}  Kg6 {[%clk 0:00:11]} 91. Rc7 {[%clk 0:00:12]}  Kh5 {[%clk 0:00:11]} 92. Rh7+ {[%clk 0:00:11]}  Kg6 {[%clk 0:00:11]} 93. Rb7 {[%clk 0:00:12]}  Rc4 {[%clk 0:00:11]} 94. Rb5 {[%clk 0:00:11]}  Kh5 {[%clk 0:00:11]} 95. g3 {[%clk 0:00:09]}  hxg3 {[%clk 0:00:10]} 96. Kxg3 {[%clk 0:00:10]}  Rf4 {[%clk 0:00:10]} 97. Rb6 {[%clk 0:00:09]}  Ra4 {[%clk 0:00:09]} 98. Rc6 {[%clk 0:00:09]}  Ra1 {[%clk 0:00:09]} 99. Rc8 {[%clk 0:00:08]}  Rg1+ {[%clk 0:00:09]} 100. Kf2 {[%clk 0:00:08]}  Rb1 {[%clk 0:00:09]} 101. Rh8+ {[%clk 0:00:08]}  Kg6 {[%clk 0:00:09]} 102. Rg8+ {[%clk 0:00:09]}  Kf6 {[%clk 0:00:09]} 103. Rc8 {[%clk 0:00:10]}  Kg6 {[%clk 0:00:09]} 104. Kg3 {[%clk 0:00:10]}  Rb4 {[%clk 0:00:09]} 105. Rc6+ {[%clk 0:00:10]}  Kh5 {[%clk 0:00:10]} 106. Rd6 {[%clk 0:00:11]}  Rc4 {[%clk 0:00:10]} 107. Rd5 {[%clk 0:00:11]}  Rb4 {[%clk 0:00:10]} 108. Re5 {[%clk 0:00:12]}  Rc4 {[%clk 0:00:10]} 109. Rb5 {[%clk 0:00:12]}  Rd4 {[%clk 0:00:10]} 110. Rb1 {[%clk 0:00:12]}  Ra4 {[%clk 0:00:10]} 111. Rh1+ {[%clk 0:00:13]}  Kg6 {[%clk 0:00:11]} 112. Rg1 {[%clk 0:00:13]}  Ra3 {[%clk 0:00:11]} 113. Rd1 {[%clk 0:00:13]}  Ra4 {[%clk 0:00:11]} 114. Rc1 {[%clk 0:00:13]}  Kh5 {[%clk 0:00:11]} 115. Rc8 {[%clk 0:00:12]}  Rb4 {[%clk 0:00:10]} 116. Rd8 {[%clk 0:00:11]} 1/2-1/2


[Site "https://www.chess.com"]

[Event "Titled Tuesday Blitz March 08 Early 2022"]
[White "Sahil, Tickoo"]
[Black "De Souza, Cristiano Gomes"]
[WhiteFideId "5019710"]
[BlackFideId "2151758"]
[WhiteElo "2099"]
[BlackElo "2068"]
[Result "0-1"]
[Round "05"]
[TimeControl "180+1"]
[Date "2022.03.09"]
[WhiteClock "0:00:06"]
[BlackClock "0:01:18"]

1. d4 {[%clk 0:03:00]}  Nf6 {[%clk 0:02:57]} 2. c4 {[%clk 0:03:00]}  g6 {[%clk 0:02:57]} 3. Nc3 {[%clk 0:03:00]}  Bg7 {[%clk 0:02:57]} 4. e4 {[%clk 0:02:58]}  d6 {[%clk 0:02:57]} 5. f3 {[%clk 0:02:56]}  O-O {[%clk 0:02:58]} 6. Be3 {[%clk 0:02:55]}  Nc6 {[%clk 0:02:59]} 7. Nge2 {[%clk 0:02:52]}  a6 {[%clk 0:02:58]} 8. Ng3 {[%clk 0:02:45]}  Rb8 {[%clk 0:02:58]} 9. Qd2 {[%clk 0:02:38]}  e5 {[%clk 0:02:57]} 10. d5 {[%clk 0:02:36]}  Nd4 {[%clk 0:02:56]} 11. Nge2 {[%clk 0:02:28]}  Nxe2 {[%clk 0:02:55]} 12. Bxe2 {[%clk 0:02:29]}  Ne8 {[%clk 0:02:52]} 13. O-O {[%clk 0:02:25]}  f5 {[%clk 0:02:52]} 14. Rac1 {[%clk 0:02:21]}  f4 {[%clk 0:02:51]} 15. Bf2 {[%clk 0:02:20]}  g5 {[%clk 0:02:51]} 16. c5 {[%clk 0:02:20]}  Rf6 {[%clk 0:02:49]} 17. g4 {[%clk 0:01:57]}  fxg3 {[%clk 0:02:47]} 18. hxg3 {[%clk 0:01:56]}  Rg6 {[%clk 0:02:45]} 19. Kg2 {[%clk 0:01:53]}  g4 {[%clk 0:02:40]} 20. f4 {[%clk 0:01:50]}  exf4 {[%clk 0:02:40]} 21. gxf4 {[%clk 0:01:36]}  g3 {[%clk 0:02:39]} 22. Be3 {[%clk 0:01:30]}  Rh6 {[%clk 0:02:38]} 23. Rh1 {[%clk 0:01:29]}  Rh2+ {[%clk 0:02:29]} 24. Rxh2 {[%clk 0:01:23]}  gxh2 {[%clk 0:02:29]} 25. Kh1 {[%clk 0:01:21]}  Qh4 {[%clk 0:02:22]} 26. Bf3 {[%clk 0:01:15]}  Nf6 {[%clk 0:02:08]} 27. Qxh2 {[%clk 0:01:06]}  Qxh2+ {[%clk 0:02:08]} 28. Kxh2 {[%clk 0:01:05]}  Ng4+ {[%clk 0:02:03]} 29. Bxg4 {[%clk 0:01:03]}  Bxg4 {[%clk 0:02:03]} 30. Rg1 {[%clk 0:00:57]}  h5 {[%clk 0:02:02]} 31. Kg3 {[%clk 0:00:47]}  Re8 {[%clk 0:02:01]} 32. Rg2 {[%clk 0:00:41]}  Bxc3 {[%clk 0:02:00]} 33. bxc3 {[%clk 0:00:39]}  Rxe4 {[%clk 0:02:00]} 34. Bd4 {[%clk 0:00:31]}  dxc5 {[%clk 0:01:57]} 35. Be5 {[%clk 0:00:31]}  Kf7 {[%clk 0:01:51]} 36. Bxc7 {[%clk 0:00:24]}  Re3+ {[%clk 0:01:51]} 37. Kh4 {[%clk 0:00:23]}  Kg6 {[%clk 0:01:47]} 38. Rh2 {[%clk 0:00:17]}  Rxc3 {[%clk 0:01:47]} 39. d6 {[%clk 0:00:16]}  Rd3 {[%clk 0:01:46]} 40. a4 {[%clk 0:00:12]}  b5 {[%clk 0:01:45]} 41. axb5 {[%clk 0:00:12]}  axb5 {[%clk 0:01:45]} 42. Bb6 {[%clk 0:00:08]}  c4 {[%clk 0:01:42]} 43. Bc5 {[%clk 0:00:06]}  Kf5 {[%clk 0:01:42]} 44. d7 {[%clk 0:00:01]}  Kxf4 {[%clk 0:01:38]} 45. Rf2+ {[%clk 0:00:01]}  Ke5 {[%clk 0:01:32]} 46. Rf7 {[%clk 0:00:02]}  Rxd7 {[%clk 0:01:31]} 47. Rxd7 {[%clk 0:00:02]}  Bxd7 {[%clk 0:01:30]} 48. Kxh5 {[%clk 0:00:03]}  Ke4 {[%clk 0:01:30]} 49. Kh4 {[%clk 0:00:03]}  Kd3 {[%clk 0:01:30]} 50. Kg3 {[%clk 0:00:04]}  c3 {[%clk 0:01:30]} 51. Kf4 {[%clk 0:00:03]}  c2 {[%clk 0:01:30]} 52. Ba3 {[%clk 0:00:04]}  Kd2 {[%clk 0:01:29]} 53. Ke4 {[%clk 0:00:04]}  c1=Q {[%clk 0:01:28]} 54. Bxc1+ {[%clk 0:00:04]}  Kxc1 {[%clk 0:01:28]} 55. Kd4 {[%clk 0:00:05]}  Kb2 {[%clk 0:01:28]} 56. Kc5 {[%clk 0:00:05]}  Ka3 {[%clk 0:01:28]} 57. Kd4 {[%clk 0:00:05]}  b4 {[%clk 0:01:28]} 58. Kd3 {[%clk 0:00:06]}  b3 {[%clk 0:01:29]} 59. Kd2 {[%clk 0:00:06]}  b2 {[%clk 0:01:29]} 60. Kc3 {[%clk 0:00:06]}  b1=Q {[%clk 0:01:27]} 61. Kd4 {[%clk 0:00:07]}  Qf5 {[%clk 0:01:25]} 62. Kc3 {[%clk 0:00:06]}  Bb5 {[%clk 0:01:24]} 63. Kd4 {[%clk 0:00:06]}  Kb4 {[%clk 0:01:21]} 64. Ke3 {[%clk 0:00:06]}  Bc6 {[%clk 0:01:19]} 65. Kd4 {[%clk 0:00:06]}  Qe4# {[%clk 0:01:18]} 0-1


[Site "https://www.chess.com"]

[Event "Titled Tuesday Blitz March 08 Early 2022"]
[White "Samadov, Read"]
[Black "Rodchenkov, Sergey D."]
[WhiteFideId "13417444"]
[BlackFideId "4168712"]
[WhiteElo "2084"]
[BlackElo "2306"]
[Result "1-0"]
[Round "05"]
[TimeControl "180+1"]
[Date "2022.03.09"]
[WhiteClock "0:00:59"]
[BlackClock "0:00:01"]

1. d4 {[%clk 0:03:00]}  d5 {[%clk 0:03:00]} 2. c4 {[%clk 0:03:01]}  dxc4 {[%clk 0:03:01]} 3. e3 {[%clk 0:03:01]}  Nf6 {[%clk 0:03:01]} 4. Bxc4 {[%clk 0:03:01]}  e6 {[%clk 0:03:01]} 5. Nf3 {[%clk 0:03:01]}  c5 {[%clk 0:03:02]} 6. O-O {[%clk 0:03:02]}  a6 {[%clk 0:03:02]} 7. a4 {[%clk 0:03:02]}  Nc6 {[%clk 0:03:02]} 8. Qe2 {[%clk 0:03:03]}  Qc7 {[%clk 0:03:01]} 9. Rd1 {[%clk 0:03:02]}  Be7 {[%clk 0:03:02]} 10. dxc5 {[%clk 0:03:02]}  Bxc5 {[%clk 0:03:03]} 11. b3 {[%clk 0:03:02]}  O-O {[%clk 0:02:56]} 12. Bb2 {[%clk 0:03:03]}  Be7 {[%clk 0:02:43]} 13. Nbd2 {[%clk 0:03:01]}  Bd7 {[%clk 0:02:07]} 14. Rac1 {[%clk 0:03:00]}  Rfd8 {[%clk 0:02:07]} 15. Bd3 {[%clk 0:02:57]}  Qb8 {[%clk 0:01:56]} 16. Ne4 {[%clk 0:02:57]}  Nxe4 {[%clk 0:01:52]} 17. Bxe4 {[%clk 0:02:57]}  Be8 {[%clk 0:01:45]} 18. h4 {[%clk 0:02:53]}  h6 {[%clk 0:01:42]} 19. h5 {[%clk 0:02:51]}  Qc7 {[%clk 0:01:35]} 20. Bb1 {[%clk 0:02:49]}  Qb6 {[%clk 0:01:21]} 21. Qc2 {[%clk 0:02:45]}  f5 {[%clk 0:01:21]} 22. e4 {[%clk 0:02:32]}  Nb4 {[%clk 0:00:40]} 23. Qe2 {[%clk 0:02:32]}  f4 {[%clk 0:00:35]} 24. Ne5 {[%clk 0:01:43]}  Nc6 {[%clk 0:00:17]} 25. Qg4 {[%clk 0:01:37]}  Nxe5 {[%clk 0:00:16]} 26. Bxe5 {[%clk 0:01:37]}  Bg5 {[%clk 0:00:17]} 27. Rxd8 {[%clk 0:01:33]}  Rxd8 {[%clk 0:00:18]} 28. Bc7 {[%clk 0:01:31]}  Rc8 {[%clk 0:00:12]} 29. Bxb6 {[%clk 0:01:28]}  Rxc1+ {[%clk 0:00:12]} 30. Kh2 {[%clk 0:01:28]}  Rxb1 {[%clk 0:00:11]} 31. Qxe6+ {[%clk 0:01:28]}  Bf7 {[%clk 0:00:12]} 32. Qc8+ {[%clk 0:01:28]}  Kh7 {[%clk 0:00:12]} 33. Qxb7 {[%clk 0:01:02]}  Bxh5 {[%clk 0:00:11]} 34. Bd4 {[%clk 0:00:59]}  Kg8 {[%clk 0:00:01]} 1-0


[Site "https://www.chess.com"]

[Event "Titled Tuesday Blitz March 08 Early 2022"]
[White "Samant Aditya S"]
[Black "Khismatullin, Denis"]
[WhiteFideId "35080580"]
[BlackFideId "4142578"]
[WhiteElo "2665"]
[BlackElo "2880"]
[Result "0-1"]
[Round "05"]
[TimeControl "180+1"]
[Date "2022.03.08"]
[WhiteClock "0:00:09"]
[BlackClock "0:00:40"]

1. d4 {[%clk 0:03:00]}  Nf6 {[%clk 0:02:59]} 2. c4 {[%clk 0:03:01]}  e6 {[%clk 0:02:59]} 3. Nf3 {[%clk 0:03:00]}  a6 {[%clk 0:02:59]} 4. Nc3 {[%clk 0:02:59]}  d5 {[%clk 0:02:59]} 5. cxd5 {[%clk 0:02:54]}  exd5 {[%clk 0:03:00]} 6. Bf4 {[%clk 0:02:54]}  Be6 {[%clk 0:03:00]} 7. e3 {[%clk 0:02:54]}  Bd6 {[%clk 0:03:00]} 8. Bxd6 {[%clk 0:02:53]}  Qxd6 {[%clk 0:03:00]} 9. Bd3 {[%clk 0:02:53]}  Nbd7 {[%clk 0:02:59]} 10. O-O {[%clk 0:02:54]}  O-O {[%clk 0:03:00]} 11. Rc1 {[%clk 0:02:53]}  c6 {[%clk 0:03:00]} 12. Qc2 {[%clk 0:02:48]}  Bg4 {[%clk 0:02:57]} 13. Nd2 {[%clk 0:02:41]}  Rae8 {[%clk 0:02:57]} 14. b4 {[%clk 0:02:31]}  Bh5 {[%clk 0:02:39]} 15. a4 {[%clk 0:02:14]}  Ng4 {[%clk 0:02:36]} 16. Nf3 {[%clk 0:02:09]}  Ngf6 {[%clk 0:02:35]} 17. Nd2 {[%clk 0:02:06]}  b5 {[%clk 0:02:35]} 18. Ne2 {[%clk 0:01:28]}  Bxe2 {[%clk 0:02:18]} 19. Bxe2 {[%clk 0:01:28]}  Qxb4 {[%clk 0:02:19]} 20. Ra1 {[%clk 0:00:41]}  Re6 {[%clk 0:02:09]} 21. Rfb1 {[%clk 0:00:35]}  Qd6 {[%clk 0:02:10]} 22. Nb3 {[%clk 0:00:33]}  Ne4 {[%clk 0:02:02]} 23. Bf3 {[%clk 0:00:18]}  Rh6 {[%clk 0:01:56]} 24. g3 {[%clk 0:00:17]}  f5 {[%clk 0:01:53]} 25. Bg2 {[%clk 0:00:17]}  g5 {[%clk 0:01:29]} 26. Rc1 {[%clk 0:00:17]}  f4 {[%clk 0:01:18]} 27. Bxe4 {[%clk 0:00:16]}  dxe4 {[%clk 0:01:19]} 28. Qxe4 {[%clk 0:00:14]}  fxg3 {[%clk 0:00:59]} 29. hxg3 {[%clk 0:00:14]}  Rxf2 {[%clk 0:00:43]} 30. Kxf2 {[%clk 0:00:12]}  Rh2+ {[%clk 0:00:43]} 31. Qg2 {[%clk 0:00:06]}  Rxg2+ {[%clk 0:00:39]} 32. Kxg2 {[%clk 0:00:07]}  Qd5+ {[%clk 0:00:40]} 33. Kg1 {[%clk 0:00:08]}  Qxb3 {[%clk 0:00:39]} 34. Rxc6 {[%clk 0:00:09]}  Qxe3+ {[%clk 0:00:40]} 0-1


[Site "https://www.chess.com"]

[Event "Titled Tuesday Blitz March 08 Early 2022"]
[White "Sanal, Vahap"]
[Black "Lazavik, Denis"]
[WhiteFideId "6300545"]
[BlackFideId "13515110"]
[WhiteElo "2892"]
[BlackElo "2994"]
[Result "1-0"]
[Round "05"]
[TimeControl "180+1"]
[Date "2022.03.08"]
[WhiteClock "0:00:06"]
[BlackClock "0:00:03"]

1. e4 {[%clk 0:03:00]}  e5 {[%clk 0:02:58]} 2. Nf3 {[%clk 0:03:01]}  Nc6 {[%clk 0:02:59]} 3. Bb5 {[%clk 0:02:59]}  a6 {[%clk 0:02:57]} 4. Ba4 {[%clk 0:02:59]}  Nf6 {[%clk 0:02:57]} 5. d3 {[%clk 0:02:53]}  d6 {[%clk 0:02:56]} 6. c3 {[%clk 0:02:51]}  g6 {[%clk 0:02:56]} 7. O-O {[%clk 0:02:51]}  Bg7 {[%clk 0:02:56]} 8. Re1 {[%clk 0:02:51]}  O-O {[%clk 0:02:56]} 9. Bc2 {[%clk 0:02:50]}  Re8 {[%clk 0:02:49]} 10. h3 {[%clk 0:02:50]}  h6 {[%clk 0:02:44]} 11. Be3 {[%clk 0:02:48]}  d5 {[%clk 0:02:44]} 12. Nbd2 {[%clk 0:02:44]}  Be6 {[%clk 0:02:21]} 13. a4 {[%clk 0:02:32]}  d4 {[%clk 0:02:09]} 14. cxd4 {[%clk 0:02:31]}  exd4 {[%clk 0:02:10]} 15. Bf4 {[%clk 0:02:31]}  Nb4 {[%clk 0:02:11]} 16. Be5 {[%clk 0:02:08]}  c5 {[%clk 0:02:09]} 17. a5 {[%clk 0:01:57]}  Nh5 {[%clk 0:02:04]} 18. Bh2 {[%clk 0:01:46]}  Rc8 {[%clk 0:01:57]} 19. Ra3 {[%clk 0:01:45]}  Nf6 {[%clk 0:01:20]} 20. Ba4 {[%clk 0:01:26]}  Nd7 {[%clk 0:01:17]} 21. Nc4 {[%clk 0:01:18]}  Bxc4 {[%clk 0:01:07]} 22. dxc4 {[%clk 0:01:19]}  Nc6 {[%clk 0:01:03]} 23. Bxc6 {[%clk 0:00:50]}  Rxc6 {[%clk 0:01:02]} 24. Rb3 {[%clk 0:00:51]}  Qc8 {[%clk 0:00:57]} 25. Rd3 {[%clk 0:00:44]}  Rce6 {[%clk 0:00:54]} 26. Nd2 {[%clk 0:00:44]}  Qc6 {[%clk 0:00:45]} 27. Rf1 {[%clk 0:00:40]}  Nf6 {[%clk 0:00:40]} 28. f3 {[%clk 0:00:40]}  h5 {[%clk 0:00:37]} 29. Rb3 {[%clk 0:00:39]}  h4 {[%clk 0:00:36]} 30. Rb6 {[%clk 0:00:38]}  Qd7 {[%clk 0:00:35]} 31. Rxe6 {[%clk 0:00:35]}  Rxe6 {[%clk 0:00:34]} 32. Nb3 {[%clk 0:00:36]}  Qc6 {[%clk 0:00:35]} 33. Nc1 {[%clk 0:00:36]}  Bh6 {[%clk 0:00:34]} 34. Nd3 {[%clk 0:00:36]}  Be3+ {[%clk 0:00:34]} 35. Kh1 {[%clk 0:00:36]}  Nh5 {[%clk 0:00:35]} 36. Qe1 {[%clk 0:00:32]}  g5 {[%clk 0:00:31]} 37. b4 {[%clk 0:00:27]}  cxb4 {[%clk 0:00:31]} 38. Qxb4 {[%clk 0:00:28]}  Bf4 {[%clk 0:00:28]} 39. Nxf4 {[%clk 0:00:20]}  Nxf4 {[%clk 0:00:28]} 40. Bxf4 {[%clk 0:00:17]}  gxf4 {[%clk 0:00:29]} 41. Rd1 {[%clk 0:00:17]}  Rd6 {[%clk 0:00:27]} 42. c5 {[%clk 0:00:18]}  Rd7 {[%clk 0:00:17]} 43. Rxd4 {[%clk 0:00:18]}  Rxd4 {[%clk 0:00:16]} 44. Qxd4 {[%clk 0:00:19]}  Qb5 {[%clk 0:00:17]} 45. Qd8+ {[%clk 0:00:19]}  Kg7 {[%clk 0:00:16]} 46. Qd4+ {[%clk 0:00:17]}  Kg8 {[%clk 0:00:15]} 47. Qc3 {[%clk 0:00:16]}  Qf1+ {[%clk 0:00:12]} 48. Kh2 {[%clk 0:00:16]}  Qf2 {[%clk 0:00:12]} 49. Qc1 {[%clk 0:00:16]}  Qg3+ {[%clk 0:00:09]} 50. Kg1 {[%clk 0:00:16]}  Qg5 {[%clk 0:00:09]} 51. Qc3 {[%clk 0:00:15]}  Qg3 {[%clk 0:00:09]} 52. Qd2 {[%clk 0:00:14]}  Qg5 {[%clk 0:00:08]} 53. Qd4 {[%clk 0:00:14]}  Qe7 {[%clk 0:00:04]} 54. Qd6 {[%clk 0:00:11]}  Qg5 {[%clk 0:00:05]} 55. Qb8+ {[%clk 0:00:10]}  Kg7 {[%clk 0:00:04]} 56. Qd6 {[%clk 0:00:09]}  Kg8 {[%clk 0:00:05]} 57. Qd5 {[%clk 0:00:08]}  Qg3 {[%clk 0:00:04]} 58. Kf1 {[%clk 0:00:05]}  Qg7 {[%clk 0:00:05]} 59. Qd8+ {[%clk 0:00:04]}  Kh7 {[%clk 0:00:05]} 60. Qxh4+ {[%clk 0:00:04]}  Kg8 {[%clk 0:00:06]} 61. Qd8+ {[%clk 0:00:05]}  Kh7 {[%clk 0:00:06]} 62. Kg1 {[%clk 0:00:03]}  Qc3 {[%clk 0:00:06]} 63. Qh4+ {[%clk 0:00:03]}  Kg7 {[%clk 0:00:06]} 64. Qg5+ {[%clk 0:00:04]}  Kf8 {[%clk 0:00:05]} 65. Qd8+ {[%clk 0:00:04]}  Kg7 {[%clk 0:00:05]} 66. Kh2 {[%clk 0:00:03]}  Qxc5 {[%clk 0:00:04]} 67. h4 {[%clk 0:00:04]}  Qc1 {[%clk 0:00:02]} 68. Qg5+ {[%clk 0:00:04]}  Kf8 {[%clk 0:00:02]} 69. Qd8+ {[%clk 0:00:04]}  Kg7 {[%clk 0:00:02]} 70. Qg5+ {[%clk 0:00:04]}  Kh7 {[%clk 0:00:03]} 71. h5 {[%clk 0:00:05]}  Qe1 {[%clk 0:00:02]} 72. Qf5+ {[%clk 0:00:06]}  Kg7 {[%clk 0:00:02]} 73. Qg5+ {[%clk 0:00:06]}  Kh7 {[%clk 0:00:03]} 74. Qxf4 {[%clk 0:00:06]}  Kg7 {[%clk 0:00:02]} 75. Qg5+ {[%clk 0:00:06]}  Kh7 {[%clk 0:00:03]} 76. h6 {[%clk 0:00:07]}  Qc3 {[%clk 0:00:03]} 77. e5 {[%clk 0:00:06]} 1-0


[Site "https://www.chess.com"]

[Event "Titled Tuesday Blitz March 08 Early 2022"]
[White "Seemann, Jakub"]
[Black "Aradhya, Garg"]
[WhiteFideId "21874697"]
[BlackFideId "25006746"]
[WhiteElo "2003"]
[BlackElo "2169"]
[Result "0-1"]
[Round "05"]
[TimeControl "180+1"]
[Date "2022.03.09"]
[WhiteClock "0:00:02"]
[BlackClock "0:01:01"]

1. d4 {[%clk 0:03:00]}  d5 {[%clk 0:02:57]} 2. c4 {[%clk 0:02:57]}  e6 {[%clk 0:02:57]} 3. Nf3 {[%clk 0:02:57]}  Nf6 {[%clk 0:02:57]} 4. g3 {[%clk 0:02:56]}  dxc4 {[%clk 0:02:57]} 5. Bg2 {[%clk 0:02:56]}  a6 {[%clk 0:02:57]} 6. O-O {[%clk 0:02:56]}  Nc6 {[%clk 0:02:58]} 7. e3 {[%clk 0:02:51]}  Rb8 {[%clk 0:02:39]} 8. Qe2 {[%clk 0:02:47]}  b5 {[%clk 0:02:38]} 9. b3 {[%clk 0:02:47]}  Bd6 {[%clk 0:02:32]} 10. bxc4 {[%clk 0:02:46]}  bxc4 {[%clk 0:02:33]} 11. Qxc4 {[%clk 0:02:45]}  Bb7 {[%clk 0:02:34]} 12. Nc3 {[%clk 0:02:41]}  O-O {[%clk 0:02:33]} 13. Rd1 {[%clk 0:02:37]}  Nb4 {[%clk 0:02:32]} 14. a3 {[%clk 0:02:19]}  Nbd5 {[%clk 0:02:32]} 15. Na4 {[%clk 0:02:15]}  Qd7 {[%clk 0:02:26]} 16. Nc5 {[%clk 0:02:14]}  Qb5 {[%clk 0:02:20]} 17. Qxb5 {[%clk 0:02:12]}  axb5 {[%clk 0:02:21]} 18. Nxb7 {[%clk 0:02:13]}  Rxb7 {[%clk 0:02:21]} 19. Bb2 {[%clk 0:02:08]}  Ra7 {[%clk 0:02:18]} 20. Ne1 {[%clk 0:02:01]}  Nb6 {[%clk 0:02:17]} 21. Bf1 {[%clk 0:01:53]}  Nc4 {[%clk 0:02:16]} 22. Bxc4 {[%clk 0:01:45]}  bxc4 {[%clk 0:02:17]} 23. Nc2 {[%clk 0:01:32]}  Rb8 {[%clk 0:02:14]} 24. Bc3 {[%clk 0:01:10]}  Nd5 {[%clk 0:02:13]} 25. Bb4 {[%clk 0:01:05]}  Bxb4 {[%clk 0:01:56]} 26. axb4 {[%clk 0:01:05]}  Rba8 {[%clk 0:01:56]} 27. b5 {[%clk 0:00:42]}  Nc3 {[%clk 0:01:52]} 28. Rxa7 {[%clk 0:00:28]}  Rxa7 {[%clk 0:01:52]} 29. Ra1 {[%clk 0:00:28]}  Rxa1+ {[%clk 0:01:51]} 30. Nxa1 {[%clk 0:00:29]}  Kf8 {[%clk 0:01:50]} 31. Nc2 {[%clk 0:00:28]}  Nxb5 {[%clk 0:01:50]} 32. Kf1 {[%clk 0:00:26]}  Ke7 {[%clk 0:01:50]} 33. Ke2 {[%clk 0:00:24]}  Kd6 {[%clk 0:01:50]} 34. Kd2 {[%clk 0:00:21]}  c5 {[%clk 0:01:50]} 35. dxc5+ {[%clk 0:00:20]}  Kxc5 {[%clk 0:01:51]} 36. Kc1 {[%clk 0:00:20]}  Nc3 {[%clk 0:01:50]} 37. Kd2 {[%clk 0:00:20]}  Ne4+ {[%clk 0:01:50]} 38. Ke2 {[%clk 0:00:20]}  e5 {[%clk 0:01:49]} 39. f3 {[%clk 0:00:20]}  Nc3+ {[%clk 0:01:49]} 40. Kd2 {[%clk 0:00:21]}  Nd5 {[%clk 0:01:49]} 41. Ke2 {[%clk 0:00:17]}  Kb5 {[%clk 0:01:44]} 42. Kd2 {[%clk 0:00:16]}  Ka4 {[%clk 0:01:43]} 43. e4 {[%clk 0:00:17]}  Nb4 {[%clk 0:01:42]} 44. Ne3 {[%clk 0:00:17]}  Kb3 {[%clk 0:01:42]} 45. Nd1 {[%clk 0:00:08]}  Na2 {[%clk 0:01:42]} 46. Ne3 {[%clk 0:00:06]}  c3+ {[%clk 0:01:43]} 47. Kd1 {[%clk 0:00:06]}  Nb4 {[%clk 0:01:42]} 48. Kc1 {[%clk 0:00:07]}  h5 {[%clk 0:01:28]} 49. h4 {[%clk 0:00:07]}  g6 {[%clk 0:01:20]} 50. g4 {[%clk 0:00:07]}  Nd3+ {[%clk 0:01:01]} 51. Kd1 {[%clk 0:00:04]}  hxg4 {[%clk 0:01:00]} 52. fxg4 {[%clk 0:00:04]}  Nf2+ {[%clk 0:01:00]} 53. Ke2 {[%clk 0:00:04]}  Nxg4 {[%clk 0:01:00]} 54. Nxg4 {[%clk 0:00:02]}  c2 {[%clk 0:01:01]} 0-1


[Site "https://www.chess.com"]